Workbook

Sheet Title
A1: CENTERS FOR DISEASE CONTROL & PREVENTION (CDC)
F5: Public Health Laboratory Impact:
F6: A tool to estimate public health laboratory contribution to and impact of Salmonella diagnostic testing
F8: Authors: Leah S. Fischer, Seonghye Jeon, Emily B. Kahn, Gloria J. Kang, Martin I. Meltzer (HEMU/CDC)
F9: Ian D. Plumb, Hilary K. Whitham (DFWED/CDC), Eija Trees (APHL)
L10: Contact Info: HEMU@cdc.gov
F12: Acknowledgments: H. Hanson, K. Kubota, L. Kurimski, K. Larson, S. Shea, B. Su, A. Wright, A. Yusuf (APHL)
F13: C. Bean, D. Boxrud, R. Jepson, P. Lewandowski, M. Pentella, D. Severson, V. Waddell (APHL - Member Laboratories)
F16: Version 1.0
F17: Date of this version:
F18: 2021-02-09

Sheet Intro
A1: INTRODUCTION
C3: About the Tool
C5: This tool allows public health decision-makers and funders to estimate the resources needed for Salmonella diagnostic testing by public health laboratories and its impact on outcomes associated with Salmonella such as ER visits, hospitalizations, and deaths.
C8: Instruction
C10: User Input | E10: Click the yellow cells and enter your values; they are pre-populated with illustrative numbers or suggested default values.
C12: Calculated or linked cell | E12: Grey cells contain formula or calculation; they will be automatically updated based on user entries in the yellow cells.
C14: Link to other pages | E14: Blue cells are linked to other pages that contain detailed calculations or assumed default parameters.
E16: Click the arrow buttons on the upper right corner to navigate through the tool.
E18: Click the icons to see general information, definitions and detailed explanations of the corresponding page.
C21: Background
C22: Public health laboratories (PHLs) have a role in protecting public health and the environment by performing a range of critical services that include reference testing, diagnostic testing, disease surveillance, and emergency response support. This tool was developed to evaluate PHL system contributions to and impact on nontyphoidal Salmonella diagnostic testing at local jurisdiction levels, given the relatively large disease burden associated with outbreaks, cases, and hospitalizations from Salmonella infections in the United States. Nontyphoidal Salmonella are estimated to cause 1.35 million infections, 26,600 hospitalizations, and 421 deaths each year in the United States, resulting in an estimated $400 million in direct medical costs when accounting for under-reported and under-diagnosed cases.
C30: Descriptions of Health Outcomes Considered in this Model
C32: Non-hospitalized cases | E32: Recovered cases without a visit to physician office, ER room or hospital.
C34: Received medical care | E34: Visited a physician, emergency room, or hospital-based outpatient clinic.
C36: Physician office visit | E36: Visited physician office.
C38: Emergency room visit | E38: Visited emergency room.
C40: Hospital-based | E40: Visited hospital-based outpatient clinic.
C41: outpatient clinic visit
C43: Hospitalized cases | E43: Hospitalized cases were assumed to have additional medical costs including physician care,
C44: (inpatient overnight stays) | E44: emergency room services, and outpatient services. Hospitalizations may result in recovery or death.
C46: Death | E46: Death in this tool is always preceded by hospitalization.
B51: References
B53: CDC National Outbreak Reporting System (NORS)
C54: https://wwwn.cdc.gov/norsdashboard/
B55: Batz, Michael B., Sandra A. Hoffmann, J. Glenn Morris Jr. 2014.
C56: Disease-Outcome Trees, EQ-5D Scores, and Estimated Annual Losses of Quality-Adjusted Life Years (QALYs) Due to 14 Foodborne Pathogens in the United States. Foodborne Pathogen and Disease 11(5): 395-402.
B57: Economic Research Service (ERS), U.S. Department of Agriculture (USDA).
C58: Cost Estimates of Foodborne Illnesses. http://ers.usda.gov/data-products/cost-estimates-of-foodborne-illnesses.aspx.(2014).
B59: Hoffmann, Sandra, Michael Batz, J. Glenn Morris Jr. 2012.
C60: “Annual Cost of Illness and Quality-Adjusted Life Year Losses in the United States Due to 14 Foodborne Pathogens.” J. Food Protection 75(7): 1291-1302.
B61: Hoffmann, Sandra, Bryan Maculloch, and Michael Batz.
C62: Economic Burden of Major Foodborne Illnesses Acquired in the United States, EIB-140, U.S. Department of Agriculture, Economic Research Service, May 2015.
B63: Scallan, E., Hoekstra, R. M., Angulo, F. J., Tauxe, R. V., Widdowson, M., Roy, S. L....Griffin, P. M. (2011).
C64: Foodborne Illness Acquired in the United States—Major Pathogens. Emerging Infectious Diseases, 17(1), 7-15. https://dx.doi.org/10.3201/eid1701.p11101.
B65: Robert L. Scharff, John Besser, Donald J. Sharp, Timothy F. Jones, Peter Gerner-Smidt, Craig W. Hedberg (2016).
C66: An Economic Evaluation of PulseNet: A Network for Foodborne Disease Surveillance. American Journal of Preventive Medicine, 50(5).

Sheet 1. Epidemiology
A1: 1. EPIDEMIOLOGY
C2: Low year | D2: Average year | E2: High year
B3: Year(s): | C3: 2020 | D3: 2000 | E3: 2010
B4: For: | C4: U.S. State
B6: Reported Cases and Outcomes | K6: Note: The default numbers on this page are for illustrative purposes only.
K7: Enter your numbers in the yellow cell. Click the icons for more information.
C8: Number of lab confirmed reported Salmonella cases | F8: ="Low (" &TEXT(year_low,"####") &")" -> Low (2020) | G8: ="Med (" &TEXT(year_med,"####") &")" -> Med (2000) | H8: ="High (" &TEXT(year_high,"####") &")" -> High (2010)
D9: National (for comparison) | F9: =national_low -> 21268.03392 | G9: =national_med -> 39385.248 | H9: =national_high -> 70893.4464
D10: =TEXT(area,"") -> U.S. State | F10: 400 | G10: 800 | H10: 1200
F12: Click here to see the national estimates of Salmonella cases
C15: Note: Calculated based on the % of health outcomes (Batz et al. 2010). Users may enter in values if data are available.
C16: ="Total hospitalized in "&TEXT(area,"") -> Total hospitalized in U.S. State | F16: ='Epidemiology (Details)'!L11 -> 7.52 | G16: ='Epidemiology (Details)'!M11 -> 15.04 | H16: ='Epidemiology (Details)'!N11 -> 22.56
D17: Died | F17: ='Epidemiology (Details)'!L16 -> 0.1504 | G17: ='Epidemiology (Details)'!M16 -> 0.3008 | H17: ='Epidemiology (Details)'!N16 -> 0.4512
C19: ="Total non-hospitalized in "&TEXT(area,"") -> Total non-hospitalized in U.S. State | F19: ='Epidemiology (Details)'!L18 -> 392.48 | G19: ='Epidemiology (Details)'!M18 -> 784.96 | H19: ='Epidemiology (Details)'!N18 -> 1177.44
D20: Received medical care | F20: ='Epidemiology (Details)'!L19 -> 28.8 | G20: ='Epidemiology (Details)'!M19 -> 57.6 | H20: ='Epidemiology (Details)'!N19 -> 86.4
F22: Click here to edit epidemiologic parameters (e.g., % hospitalization, % death)
B26: Estimated Cases and Outcomes modified for under-reporting and under-diagnosis
F28: ="Low (" &TEXT(year_low,"####") &")" -> Low (2020) | G28: ="Med (" &TEXT(year_med,"####") &")" -> Med (2000) | H28: ="High (" &TEXT(year_high,"####") &")" -> High (2010)
C29: Number of estimated Salmonella cases | F29: ='Epidemiology (Details)'!V9 -> 11640 | G29: ='Epidemiology (Details)'!W9 -> 23280 | H29: ='Epidemiology (Details)'!X9 -> 34920
C31: ="Total hospitalized in "&TEXT(area,"") -> Total hospitalized in U.S. State | F31: ='Epidemiology (Details)'!V11 -> 218.832 | G31: ='Epidemiology (Details)'!W11 -> 437.664 | H31: ='Epidemiology (Details)'!X11 -> 656.496
D32: Died | F32: ='Epidemiology (Details)'!V16 -> 4.37664 | G32: ='Epidemiology (Details)'!W16 -> 8.75328 | H32: ='Epidemiology (Details)'!X16 -> 13.12992
C34: ="Total non-hospitalized in "&TEXT(area,"") -> Total non-hospitalized in U.S. State | F34: ='Epidemiology (Details)'!V18 -> 11421.168 | G34: ='Epidemiology (Details)'!W18 -> 22842.336 | H34: ='Epidemiology (Details)'!X18 -> 34263.504
D35: Received medical care | F35: ='Epidemiology (Details)'!V19 -> 838.08 | G35: ='Epidemiology (Details)'!W19 -> 1676.16 | H35: ='Epidemiology (Details)'!X19 -> 2514.24
C37: Note: Modified for | D37: ="under-reporting factor of "&TEXT(under_rep_adj,"#.#") & "0 and under-diagnosis factor of " &TEXT(under_diag_adj,"##.#") -> under-reporting factor of 1.0 and under-diagnosis factor of 29.1
F39: Click here to edit under-reporting or under-diagnosis factors
B44: References
B46: Scallan, E., Hoekstra, R. M., Angulo, F. J., Tauxe, R. V., Widdowson, M., Roy, S. L....Griffin, P. M. (2011).
C47: Foodborne Illness Acquired in the United States—Major Pathogens. Emerging Infectious Diseases, 17(1), 7-15. https://dx.doi.org/10.3201/eid1701.p11101.
B48: Batz, Michael B., Sandra A. Hoffmann, J. Glenn Morris Jr. 2014.
C49: Disease-Outcome Trees, EQ-5D Scores, and Estimated Annual Losses of Quality-Adjusted Life Years (QALYs) Due to 14 Foodborne Pathogens in the United States. Foodborne Pathogen and Disease 11(5): 395-402.
B50: Collier SA, Deng L, Adam EA, Benedict KM, Beshearse EM, Blackstock AJ, et al.
C51: Estimate of Burden and Direct Healthcare Cost of Infectious Waterborne Disease in the United States. Emerging Infectious Diseases. 2021;27(1):140-9. doi: 10.3201/eid2701.190676.

Sheet 2. Medical Costs
A1: 2. DIRECT MEDICAL COSTS
B3: Note: Enter your numbers in the yellow cell. Click the icon for more information.
B6: Health outcome costs (2019 USD)
E7: Mean cost per visit
D8: Physician office visit | E8: ='Data Summary'!F18 -> 135.9567554
D10: Emergency room visit | E10: ='Data Summary'!F21 -> 572.9343719
D12: Hospital-based | E12: ='Data Summary'!F24 -> 658.8273135 | Z12: Note: This table is to convert the medical cost reported as 2013 USD into 2019 USD.
D13: outpatient clinic visit | Z13: Source: https://www.bls.gov/cpi/factsheets/medical-care.htm
E14: Mean cost per hospitalization | Z14: Year | AA14: Medical CPI
D15: Hospitalization | E15: ='Data Summary'!F27 -> 13938.02428 | Z15: 2013 | AA15: 454.011
D16: (inpatient overnight stays) | Z16: 2019 | AA16: 536.147
B18: Note: Default values are the mean cost per visit, and likely higher than the median cost (which is the most representative cost estimate of the population).
B20: References
B22: Economic Research Service (ERS), U.S. Department of Agriculture (USDA). Cost Estimates of Foodborne Illnesses.
C23: http://ers.usda.gov/data-products/cost-estimates-of-foodborne-illnesses.aspx

Sheet 3. Lab Testing
A1: 3. JURISDICTION LABORATORY TESTING
B3: Note: The default numbers on this page are for illustrative purposes only.
B6: Throughput
C8: Salmonella testing breakdown | E8: ="Low (" &TEXT(year_low,"####") &")" -> Low (2020) | F8: ="Med (" &TEXT(year_med,"####") &")" -> Med (2000) | G8: ="High (" &TEXT(year_high,"####") &")" -> High (2010)
C9: Total number of Salmonella specimens received | E9: =SUM(E10:E11) -> 100 | F9: =SUM(F10:F11) -> 200 | G9: =SUM(G10:G11) -> 500
D10: Specimens tested by the PHL | E10: 100 | F10: 200 | G10: 500
D11: Specimens sent elsewhere by PHL | E11: 0 | F11: 0 | G11: 0
C13: Total number of Salmonella isolates received | E13: =SUM(E14:E15) -> 400 | F13: =SUM(F14:F15) -> 800 | G13: =SUM(G14:G15) -> 1200
D14: Isolates tested by the PHL | E14: 400 | F14: 800 | G14: 1200
D15: Isolates sent elsewhere by PHL | E15: 0 | F15: 0 | G15: 0
B18: Specimens
C20: Salmonella specimens tested by the PHL | E20: ="Low (" &TEXT(year_low,"####") &")" -> Low (2020) | F20: ="Med (" &TEXT(year_med,"####") &")" -> Med (2000) | G20: ="High (" &TEXT(year_high,"####") &")" -> High (2010)
C21: Number of Salmonella specimens tested by PHL | E21: =sample_low -> 100 | F21: =sample_med -> 200 | G21: =sample_high -> 500
D22: Perform Culture | E22: 100 | F22: 200 | G22: 500
D23: CIDT | E23: 100 | F23: 200 | G23: 500
D24: Other: ______________
D25: Other: ______________
B28: Isolates
C30: Salmonella isolates tested by the PHL | E30: ="Low (" &TEXT(year_low,"####") &")" -> Low (2020) | F30: ="Med (" &TEXT(year_med,"####") &")" -> Med (2000) | G30: ="High (" &TEXT(year_high,"####") &")" -> High (2010)
C31: Number of Salmonellaisolates tested by PHL | E31: =isolate_low -> 400 | F31: =isolate_med -> 800 | G31: =isolate_high -> 1200
D32: Conventional Serotyping | E32: 0 | F32: 0 | G32: 0
D33: Molecular Serotyping | E33: 400 | F33: 800 | G33: 1200
D34: Antimicrobial Susceptibility | E34: 400 | F34: 800 | G34: 1200
D35: PFGE | E35: 400 | F35: 800 | G35: 1200
D36: WGS Lab | E36: 400 | F36: 800 | G36: 1200
D37: WGS Data Analysis | E37: 400 | F37: 800 | G37: 1200
D38: Other: _______________
D39: Other: _______________

Sheet 4. Lab Costs
A1: 4. JURISDICTION LABORATORY TESTING COSTS
B3: Note: Default cost values are approximate estimates based on published literatures and may not best represent your jurisdiction.
B6: Salmonella Specimen costs
C8: Mean Cost per Specimen Tested | G8: Lower Estimate | H8: Upper Estimate | Q8: Low year | R8: Med year | S8: High year
D9: ='3. Lab Testing'!D22 -> Perform Culture | E9: =G9 -> 67.8972 | G9: =6789.72/100 -> 67.8972 | H9: =G9*1.5 -> 101.8458 | P9: Total cost, Culture | Q9: =E9*'3. Lab Testing'!E22 -> 6789.72 | R9: =E9*'3. Lab Testing'!F22 -> 13579.44 | S9: =E9*'3. Lab Testing'!G22 -> 33948.6
D10: ='3. Lab Testing'!D23 -> CIDT | E10: =G10 -> 251.636 | G10: =25163.6/100 -> 251.636 | H10: =G10*1.5 -> 377.454 | P10: Total cost, CIDT | Q10: =E10*'3. Lab Testing'!E23 -> 25163.6 | R10: =E10*'3. Lab Testing'!F23 -> 50327.2 | S10: =E10*'3. Lab Testing'!G23 -> 125818
D11: ='3. Lab Testing'!D24 -> Other: ______________ | P11: Total cost, Other | Q11: =E11*'3. Lab Testing'!E24 -> 0 | R11: =E11*'3. Lab Testing'!F24 -> 0 | S11: =E11*'3. Lab Testing'!G24 -> 0
D12: ='3. Lab Testing'!D25 -> Other: ______________ | P12: Total cost, Other | Q12: =E12*'3. Lab Testing'!E25 -> 0 | R12: =E12*'3. Lab Testing'!F25 -> 0 | S12: =E12*'3. Lab Testing'!G25 -> 0
B14: Salmonella Isolate costs | P14: Total cost to process specimen | Q14: =SUM(Q9:Q12)/sample_low -> 319.5332 | R14: =SUM(R9:R12)/sample_med -> 319.5332 | S14: =SUM(S9:S12)/sample_high -> 319.5332
C16: Mean Cost per Isolate Tested | G16: Lower Estimate | H16: Upper Estimate
D17: ='3. Lab Testing'!D32 -> Conventional Serotyping | E17: =G17 -> 93 | G17: =111600/1200 -> 93 | H17: =G17*1.5 -> 139.5 | P17: Total cost, Conventional Serotyping | Q17: =E17*'3. Lab Testing'!E32 -> 0 | R17: =E17*'3. Lab Testing'!F32 -> 0 | S17: =E17*'3. Lab Testing'!G32 -> 0
D18: ='3. Lab Testing'!D33 -> Molecular Serotyping | E18: 31 | G18: 31 | H18: 88 | P18: Total cost, Molecular Serotyping | Q18: =E18*'3. Lab Testing'!E33 -> 12400 | R18: =E18*'3. Lab Testing'!F33 -> 24800 | S18: =E18*'3. Lab Testing'!G33 -> 37200
D19: ='3. Lab Testing'!D34 -> Antimicrobial Susceptibility | E19: 30.28 | G19: =36336/1200 -> 30.28 | H19: 45.42 | P19: Total cost, AMR | Q19: =E19*'3. Lab Testing'!E34 -> 12112 | R19: =E19*'3. Lab Testing'!F34 -> 24224 | S19: =E19*'3. Lab Testing'!G34 -> 36336
D20: ='3. Lab Testing'!D35 -> PFGE | E20: 94.2 | G20: =113040/1200 -> 94.2 | H20: 141.3 | P20: Total cost, PFGE | Q20: =E20*'3. Lab Testing'!E35 -> 37680 | R20: =E20*'3. Lab Testing'!F35 -> 75360 | S20: =E20*'3. Lab Testing'!G35 -> 113040
D21: ='3. Lab Testing'!D36 -> WGS Lab | E21: 211.75 | G21: =254100/1200 -> 211.75 | H21: 317.625 | P21: Total cost, WGS lab | Q21: =E21*'3. Lab Testing'!E36 -> 84700 | R21: =E21*'3. Lab Testing'!F36 -> 169400 | S21: =E21*'3. Lab Testing'!G36 -> 254100
D22: ='3. Lab Testing'!D37 -> WGS Data Analysis | E22: =G22 -> 13 | G22: 13 | H22: 40 | P22: Total cost, WGS data analysis | Q22: =E22*'3. Lab Testing'!E37 -> 5200 | R22: =E22*'3. Lab Testing'!F37 -> 10400 | S22: =E22*'3. Lab Testing'!G37 -> 15600
D23: ='3. Lab Testing'!D38 -> Other: _______________ | P23: Total cost, Other | Q23: =E23*'3. Lab Testing'!E38 -> 0 | R23: =E23*'3. Lab Testing'!F38 -> 0 | S23: =E23*'3. Lab Testing'!G38 -> 0
D24: ='3. Lab Testing'!D39 -> Other: _______________ | P24: Total cost, Other | Q24: =E24*'3. Lab Testing'!E39 -> 0 | R24: =E24*'3. Lab Testing'!F39 -> 0 | S24: =E24*'3. Lab Testing'!G39 -> 0
B26: Shipping costs for specimens and isolates sent elsewhere | P26: Total cost to process isolates | Q26: =SUM(Q17:Q24)/isolate_low -> 380.23 | R26: =SUM(R17:R24)/isolate_med -> 380.23 | S26: =SUM(S17:S24)/isolate_high -> 380.23
C28: Mean cost per shipment of
D29: specimens sent elsewhere | E29: 60 | P29: Total cost, shipping specimen | Q29: =$E$29*'3. Lab Testing'!E11 -> 0 | R29: =$E$29*'3. Lab Testing'!F11 -> 0 | S29: =$E$29*'3. Lab Testing'!G11 -> 0
D30: Isolates sent elsewhere | E30: 60 | P30: Total cost, shipping isolates | Q30: =$E$30*'3. Lab Testing'!E15 -> 0 | R30: =$E$30*'3. Lab Testing'!F15 -> 0 | S30: =$E$30*'3. Lab Testing'!G15 -> 0
P32: Total costs | Q32: =SUM(Q9:Q12)+SUM(Q17:Q24)+SUM(Q29:Q30) -> 184045.32 | R32: =SUM(R9:R12)+SUM(R17:R24)+SUM(R29:R30) -> 368090.64 | S32: =SUM(S9:S12)+SUM(S17:S24)+SUM(S29:S30) -> 616042.6
B35: References
B37: Specimen Culture and CIDT cost
B38: Aamer Imdad, Fiona Retzer, Linda S Thomas, et al. (2018)
C39: Impact of Culture-Independent Diagnostic Testing on Recovery of Enteric Bacterial Infections. Clin Infect Dis. 2018 Jun 15; 66(12): 1892–1898.
B40: Conventional Serotyping cost | K40: $111,600/ 1,200 isolates = $93
B41: Eija Trees, Cristina Maria da Silva, Bishwa Adhikari, Greg Armstrong (2018)
C42: Economics of Next Genome Sequencing for Salmonella, CDC Office of Advanced Molecular Detection
B43: Molecular Serotyping cost
B44: Personal communication with Eija Trees and CDC reference lab
C45: Note: It does not include the capital investment in instrumentation, i.e. the Bioplex machine and a thermocycler; therefore, the overall cost is lower than the conventional serotyping cost. It is important to note that the labor cost is much less in molecular serotyping because the assay is quick (1.5-3 h) and one person can process as many as 94 samples at a time.
B46: Serotyping cost
B47: Association of Public Health Laboratories (2014)
C48: Salmonella Serotyping in US Public Health Laboratories. White Paper. Nov 2014
C49: https://www.aphl.org/aboutAPHL/publications/Documents/FS_SalmonellaSustainabilityWhitePaper_Nov2014.pdf
B50: Catherine Yoshida, Simone Gurnik, Aaminah Ahmad, Travis Blimkie, Stephanie A. Murphy, Andrew M. Kropinski, John H. E. Nash (2016)
C51: Evaluation of Molecular Methods for Identification of Salmonella Serovars. J Clin Microbiol. 2016 Aug; 54(8): 1992–1998.
B52: Antimicrobial susceptibility cost | K52: $36,336/ 1,200 isolates = $30.28
B53: Eija Trees, Cristina Maria da Silva, Bishwa Adhikari, Greg Armstrong (2018)
C54: Economics of Next Genome Sequencing for Salmonella, CDC Office of Advanced Molecular Detection
B55: PFGE cost
B56: Kimberlee Musser (2017)
C57: Implementation and Impact of Salmonella serotype determination using pulsed-field gel electrophoresis in New York | K57: $117,419/ 1,700 isolates = $69.07
C58: https://www.aphl.org/conferences/proceedings/Documents/2017/Annual-Meeting/56Musser.pdf
B59: Kristy A. Kubota, William J. Wolfgang, Deborah J. Baker, David Boxrud, Lauren Turner, Eija Trees, Heather A. Carleton, Peter Gerner-Smidt (2019) | K59: $30 /isolate
C60: PulseNet and the Changing Paradigm of Laboratory-Based Surveillance for Foodborne Diseases. Public Health Reports. 2019 Nov; 134(2_suppl): 22S-28S
B61: Eija Trees, Cristina Maria da Silva, Bishwa Adhikari, Greg Armstrong (2018)
C62: Economics of Next Genome Sequencing for Salmonella, CDC Office of Advanced Molecular Detection | K62: $113,040 / 1,200 isolates = $94.2
B63: WGS cost
B64: Kristy A. Kubota, William J. Wolfgang, Deborah J. Baker, David Boxrud, Lauren Turner, Eija Trees, Heather A. Carleton, Peter Gerner-Smidt (2019) | K64: $120 /isolate
C65: PulseNet and the Changing Paradigm of Laboratory-Based Surveillance for Foodborne Diseases. Public Health Reports. 2019 Nov; 134(2_suppl): 22S-28S
B66: Eija Trees, Cristina Maria da Silva, Bishwa Adhikari, Greg Armstrong (2018) | K66: $254,100 /1,200 isolates = $211.75
C67: Economics of Next Genome Sequencing for Salmonella, CDC Office of Advanced Molecular Detection
B68: WGS Data analysis cost
B69: Personal communication with Eija Trees and CDC reference lab
B71: Note: upper estimates for PFGE, AMR, or conventional serotyping cost may be lower.

Sheet 5. Response Activities
A1: 5. JURISDICTION RESPONSE
B3: Note: The default numbers on this page are for illustrative purposes only.
B6: Salmonella | D6: ="Outbreak Response Activities in "&TEXT(area,"") -> Outbreak Response Activities in U.S. State
F8: ="Low (" &TEXT(year_low,"####") &")" -> Low (2020) | G8: ="Med (" &TEXT(year_med,"####") &")" -> Med (2000) | H8: ="High (" &TEXT(year_high,"####") &")" -> High (2010)
C9: Number of outbreak investigations | F9: 0 | G9: 0 | H9: 0
C10: Number of community outreach activities | F10: 0 | G10: 0 | H10: 0
C11: (messaging, recalls, etc)

Sheet 6. Response Illustrations
A1: 6. ILLUSTRATIONS of RESPONSE IMPACT (Optional)
B3: Note: The default numbers on this page are for illustrative purposes only.
B6: Salmonella | D6: ="Outbreak Response Activities in "&TEXT(area,"") -> Outbreak Response Activities in U.S. State
AC7: case
G8: Illustration 1 | I8: Illustration 2 | AC8: kg
C9: Unit of the product | G9: kg | I9: case | AC9: lbs
AC10: pack
C11: Amount of outbreak-related products distributed | G11: 25000 | H11: =G9 -> kg | I11: 5000 | J11: =I9 -> case | AC11: unit
C12: Amount of products discarded by retailers due to response activities | G12: 10000 | H12: =G9 -> kg | I12: 2000 | J12: =I9 -> case
C13: Amount of products consumed | G13: =G11-G12 -> 15000 | H13: =G9 -> kg | I13: =I11-I12 -> 3000 | J13: =I9 -> case
C15: Number of Salmonella cases attributable to the product | G15: 200 | I15: 100
B18: Salmonella Outbreak Response Impact
G20: =G8 -> Illustration 1 | I20: =I8 -> Illustration 2
C21: Number of Salmonella cases prevented due to response activities | G21: ='Response Impact'!F16 -> 133.3333333 | I21: ='Response Impact'!G16 -> 66.66666667
G23: Click here to see How the cases are calculated
B28: References
B30: Robert L. Scharff, John Besser, Donald J. Sharp, Timothy F. Jones, Peter Gerner-Smidt, Craig W. Hedberg (2016).
C31: An Economic Evaluation of PulseNet: A Network for Foodborne Disease Surveillance. American Journal of Preventive Medicine, 50(5).

Sheet Results
A1: RESULTS
C3: Note: The default numbers on this page are for illustrative purposes only.
C6: Salmonella Cases and Health Outcome
F8: ="Low (" &TEXT(year_low,"####") &")" -> Low (2020) | G8: ="Med (" &TEXT(year_med,"####") &")" -> Med (2000) | H8: ="High (" &TEXT(year_high,"####") &")" -> High (2010)
D9: Number of lab confirmed reported Salmonella cases | F9: ='Epidemiology (Details)'!L9 -> 400 | G9: ='Epidemiology (Details)'!M9 -> 800 | H9: ='Epidemiology (Details)'!N9 -> 1200
D10: Number of cases hospitalized | F10: ='1. Epidemiology'!F16 -> 7.52 | G10: ='1. Epidemiology'!G16 -> 15.04 | H10: ='1. Epidemiology'!H16 -> 22.56
D11: Number of hospitalized cases died | F11: ='1. Epidemiology'!F17 -> 0.1504 | G11: ='1. Epidemiology'!G17 -> 0.3008 | H11: ='1. Epidemiology'!H17 -> 0.4512
D13: Note: modified for | F13: ="under-reporting factor of "&TEXT(under_rep_adj,"#.#") & "0 and under-diagnosis factor of " &TEXT(under_diag_adj,"##.#") -> under-reporting factor of 1.0 and under-diagnosis factor of 29.1
D14: Total number of estimated Salmonella cases | F14: ='Epidemiology (Details)'!V9 -> 11640 | G14: ='Epidemiology (Details)'!W9 -> 23280 | H14: ='Epidemiology (Details)'!X9 -> 34920
D15: Number of cases hospitalized | F15: ='Epidemiology (Details)'!V11 -> 218.832 | G15: ='Epidemiology (Details)'!W11 -> 437.664 | H15: ='Epidemiology (Details)'!X11 -> 656.496
D16: Number of hospitalized cases died | F16: ='Epidemiology (Details)'!V16 -> 4.37664 | G16: ='Epidemiology (Details)'!W16 -> 8.75328 | H16: ='Epidemiology (Details)'!X16 -> 13.12992
C19: Salmonella Outbreak Response Activity
F21: ="Low (" &TEXT(year_low,"####") &")" -> Low (2020) | G21: ="Med (" &TEXT(year_med,"####") &")" -> Med (2000) | H21: ="High (" &TEXT(year_high,"####") &")" -> High (2010)
D22: Number of outbreak investigations | F22: ='5. Response Activities'!F9 -> 0 | G22: ='5. Response Activities'!G9 -> 0 | H22: ='5. Response Activities'!H9 -> 0
D23: Number of community outreach activities | F23: ='5. Response Activities'!F10 -> 0 | G23: ='5. Response Activities'!G10 -> 0 | H23: ='5. Response Activities'!H10 -> 0
D24: (messaging, recalls, etc)
C27: Salmonella Specimens and Isolates Tested
F29: ="Low (" &TEXT(year_low,"####") &")" -> Low (2020) | G29: ="Med (" &TEXT(year_med,"####") &")" -> Med (2000) | H29: ="High (" &TEXT(year_high,"####") &")" -> High (2010)
D30: Number of Salmonella specimens tested by the state lab | F30: ='3. Lab Testing'!E10 -> 100 | G30: ='3. Lab Testing'!F10 -> 200 | H30: ='3. Lab Testing'!G10 -> 500
D31: Number of Salmonella isolates tested by the state lab | F31: ='3. Lab Testing'!E14 -> 400 | G31: ='3. Lab Testing'!F14 -> 800 | H31: ='3. Lab Testing'!G14 -> 1200
C34: Medical costs and Lab testing costs associated with Salmonella outbreak
F36: ="Low (" &TEXT(year_low,"####") &")" -> Low (2020) | G36: ="Med (" &TEXT(year_med,"####") &")" -> Med (2000) | H36: ="High (" &TEXT(year_high,"####") &")" -> High (2010)
D37: Total medical costs | F37: ='Epidemiology (Details)'!L43 -> 120637.1305 | G37: ='Epidemiology (Details)'!M43 -> 241274.261 | H37: ='Epidemiology (Details)'!N43 -> 361911.3916
D38: Average medical cost per case | F38: =F37/F9 -> 301.5928263 | G38: =G37/G9 -> 301.5928263 | H38: =H37/H9 -> 301.5928263
D39: Total lab testing costs | F39: ='4. Lab Costs'!Q32 -> 184045.32 | G39: ='4. Lab Costs'!R32 -> 368090.64 | H39: ='4. Lab Costs'!S32 -> 616042.6
D40: Average cost per specimen tested | F40: ='4. Lab Costs'!Q14 -> 319.5332 | G40: ='4. Lab Costs'!R14 -> 319.5332 | H40: ='4. Lab Costs'!S14 -> 319.5332
D41: Average cost per isolate tested | F41: ='4. Lab Costs'!Q26 -> 380.23 | G41: ='4. Lab Costs'!R26 -> 380.23 | H41: ='4. Lab Costs'!S26 -> 380.23
D43: Note: modified for | F43: =" under-reporting factor of "&TEXT(under_rep_adj,"#.#") & "0 and under-diagnosis factor of " &TEXT(under_diag_adj,"##.#") -> under-reporting factor of 1.0 and under-diagnosis factor of 29.1
D44: Total direct medical costs | F44: ='Epidemiology (Details)'!V43 -> 3510540.498 | G44: ='Epidemiology (Details)'!W43 -> 7021080.996 | H44: ='Epidemiology (Details)'!X43 -> 10531621.49
D45: Average medical cost per case | F45: =F44/F14 -> 301.5928263 | G45: =G44/G14 -> 301.5928263 | H45: =H44/H14 -> 301.5928263

Sheet Results - Response Illustration
A1: RESULTS - ILLUSTRATION of OUTBREAK RESPONSE IMPACT
C3: Note: The default numbers on this page are for illustrative purposes only.
C6: Illustration of Salmonella Outbreak Response Impact
F8: ='6. Response Illustrations'!G8 -> Illustration 1 | G8: ='6. Response Illustrations'!I8 -> Illustration 2
D9: Number of cases averted | F9: ='6. Response Illustrations'!G21 -> 133.3333333 | G9: ='6. Response Illustrations'!I21 -> 66.66666667
D10: Number of hospitalizations averted | F10: =F9*hosp -> 2.506666667 | G10: =G9*hosp -> 1.253333333
D11: Total direct medical costs averted | F11: =F9*Results!G38 -> 40212.37684 | G11: =G9*Results!G38 -> 20106.18842

Sheet National Outbreak
A1: EPIDEMIOLOGY (National)
B3: Back to Epidemiology
B6: Reported Cases and Outcomes
C8: Number of lab confirmed reported Salmonella cases | F8: Low | G8: Med | H8: High
D9: National (for comparison) | F9: =G9*0.54 -> 21268.03392 | G9: 39385.248 | H9: =G9*1.8 -> 70893.4464
C11: Note: Calculated based on the % of health outcomes (Batz et al. 2010). Users may enter values if data available.
C12: ="Total hospitalized in "&TEXT(area,"") -> Total hospitalized in U.S. State | F12: =national_low*hosp -> 399.8390377 | G12: =national_med*hosp -> 740.4426624 | H12: =national_high*hosp -> 1332.796792
D13: Died | F13: =F12*died -> 7.996780754 | G13: =G12*died -> 14.80885325 | H13: =H12*died -> 26.65593585
C15: ="Total non-hospitalized in "&TEXT(area,"") -> Total non-hospitalized in U.S. State | F15: =national_low*(1-hosp) -> 20868.19488 | G15: =national_med*(1-hosp) -> 38644.80534 | H15: =national_high*(1-hosp) -> 69560.64961
D16: Received medical care | F16: =national_low*outpatient_care -> 1531.298442 | G16: =national_med*outpatient_care -> 2835.737856 | H16: =national_high*outpatient_care -> 5104.328141
F18: Click here to edit epidemiologic parameters
B22: Estimated Cases and Outcomes modified for under-reporting and under-diagnosis
F24: Low | G24: Med | H24: High
C25: Number of estimated Salmonella cases | F25: =national_low*under_diag_adj*under_rep_adj -> 618899.7871 | G25: =national_med*under_diag_adj*under_rep_adj -> 1146110.717 | H25: =national_high*under_diag_adj*under_rep_adj -> 2062999.29
C27: ="Total hospitalized in "&TEXT(area,"") -> Total hospitalized in U.S. State | F27: =F25*hosp -> 11635.316 | G27: =G25*hosp -> 21546.88148 | H27: =H25*hosp -> 38784.38666
D28: Died | F28: =F27*died -> 232.7063199 | G28: =G27*died -> 430.9376295 | H28: =H27*died -> 775.6877331
C30: ="Total non-hospitalized in "&TEXT(area,"") -> Total non-hospitalized in U.S. State | F30: =F25*(1-hosp) -> 607264.4711 | G30: =G25*(1-hosp) -> 1124563.835 | H30: =H25*(1-hosp) -> 2024214.904
D31: Received medical care | F31: =F25*outpatient_care -> 44560.78467 | G31: =G25*outpatient_care -> 82519.97161 | H31: =H25*outpatient_care -> 148535.9489
C33: Note: Modified for | D33: ="under-reporting factor of "&TEXT(under_rep_adj,"#.#") & "0 and under-diagnosis factor of " &TEXT(under_diag_adj,"##.#") -> under-reporting factor of 1.0 and under-diagnosis factor of 29.1
B41: References
B43: Collier SA, Deng L, Adam EA, Benedict KM, Beshearse EM, Blackstock AJ, et al.
C44: Estimate of Burden and Direct Healthcare Cost of Infectious Waterborne Disease in the United States. Emerging Infectious Diseases. 2021;27(1):140-9. doi: 10.3201/eid2701.190676.
B45: Batz, Michael B., Sandra A. Hoffmann, J. Glenn Morris Jr. 2014.
C46: Disease-Outcome Trees, EQ-5D Scores, and Estimated Annual Losses of Quality-Adjusted Life Years (QALYs) Due to 14 Foodborne Pathogens in the United States. Foodborne Pathogen and Disease 11(5): 395-402.

Sheet Epidemiology (Details)
A1: EPIDEMIOLOGY (Details)
H2: Low year | I2: Average year | J2: High year
B3: Back to Epidemiology | G3: Year(s): | H3: =year_low -> 2020 | I3: =year_med -> 2000 | J3: =year_high -> 2010
G4: For: | H4: =area -> U.S. State
B6: Proportion of health outcomes | G6: Cases and outcomes | Q6: Cases and outcomes modified for under-reporting and under-diagnosis
R7: Note: Modified | S7: ="for under-reporting factor of "&TEXT(under_rep_adj,"#.#") & "0 and under-diagnosis factor of " &TEXT(under_diag_adj,"##.#") -> for under-reporting factor of 1.0 and under-diagnosis factor of 29.1
C8: % hospitalized | D8: 0.0188 | L8: ="Low (" &TEXT(year_low,"####") &")" -> Low (2020) | M8: ="Med (" &TEXT(year_med,"####") &")" -> Med (2000) | N8: ="High (" &TEXT(year_high,"####") &")" -> High (2010) | V8: ="Low (" &TEXT(year_low,"####") &")" -> Low (2020) | W8: ="Med (" &TEXT(year_med,"####") &")" -> Med (2000) | X8: ="High (" &TEXT(year_high,"####") &")" -> High (2010)
C9: % dead among hospitalized cases | D9: 0.02 | H9: Total number of reported cases | L9: =case_low -> 400 | M9: =case_med -> 800 | N9: =case_high -> 1200 | R9: Total number of estimated cases | V9: =L9*under_rep_adj*under_diag_adj -> 11640 | W9: =M9*under_rep_adj*under_diag_adj -> 23280 | X9: =N9*under_rep_adj*under_diag_adj -> 34920
C10: % received outpatient medical care | D10: 0.072
H11: Total hospitalized | L11: =L9*hosp -> 7.52 | M11: =M9*hosp -> 15.04 | N11: =N9*hosp -> 22.56 | R11: Total hospitalized | V11: =V9*hosp -> 218.832 | W11: =W9*hosp -> 437.664 | X11: =X9*hosp -> 656.496
C12: Click here to see the health outcomes decision tree | J12: Physician office visits | L12: =L11*office_hosp -> 5.264 | M12: =M11*office_hosp -> 10.528 | N12: =N11*office_hosp -> 15.792 | T12: Physician office visits | V12: =V11*office_hosp -> 153.1824 | W12: =W11*office_hosp -> 306.3648 | X12: =X11*office_hosp -> 459.5472
J13: Emergency room visits | L13: =L11*ER_hosp -> 2.256 | M13: =M11*ER_hosp -> 4.512 | N13: =N11*ER_hosp -> 6.768 | T13: Emergency room visits | V13: =V11*ER_hosp -> 65.6496 | W13: =W11*ER_hosp -> 131.2992 | X13: =X11*ER_hosp -> 196.9488
J14: Outpatient clinic visits | L14: =L11*outpt_hosp -> 1.504 | M14: =M11*outpt_hosp -> 3.008 | N14: =N11*outpt_hosp -> 4.512 | T14: Outpatient clinic visits | V14: =V11*outpt_hosp -> 43.7664 | W14: =W11*outpt_hosp -> 87.5328 | X14: =X11*outpt_hosp -> 131.2992
I15: Recovered | L15: =L11-L16 -> 7.3696 | M15: =M11-M16 -> 14.7392 | N15: =N11-N16 -> 22.1088 | S15: Recovered | V15: =V11-V16 -> 214.45536 | W15: =W11-W16 -> 428.91072 | X15: =X11-X16 -> 643.36608
B16: Medical encounters per case (hospitalized) | I16: Died | L16: =L11*died -> 0.1504 | M16: =M11*died -> 0.3008 | N16: =N11*died -> 0.4512 | S16: Died | V16: =V11*died -> 4.37664 | W16: =W11*died -> 8.75328 | X16: =X11*died -> 13.12992
C18: Physician office visit | D18: 0.7 | H18: Total non-hospitalized | L18: =L9-L11 -> 392.48 | M18: =M9-M11 -> 784.96 | N18: =N9-N11 -> 1177.44 | R18: Total non-hospitalized | V18: =V9-V11 -> 11421.168 | W18: =W9-W11 -> 22842.336 | X18: =X9-X11 -> 34263.504
C19: Emergency room visit | D19: 0.3 | I19: Received medical care | L19: =L9*outpatient_care -> 28.8 | M19: =M9*outpatient_care -> 57.6 | N19: =N9*outpatient_care -> 86.4 | S19: Received medical care | V19: =V9*outpatient_care -> 838.08 | W19: =W9*outpatient_care -> 1676.16 | X19: =X9*outpatient_care -> 2514.24
C20: Hospital-based outpatient clinic visit | D20: 0.2 | J20: Physician office visits | L20: =L19*office_nonhosp -> 40.32 | M20: =M19*office_nonhosp -> 80.64 | N20: =N19*office_nonhosp -> 120.96 | T20: Physician office visits | V20: =V19*office_nonhosp -> 1173.312 | W20: =W19*office_nonhosp -> 2346.624 | X20: =X19*office_nonhosp -> 3519.936
J21: Emergency room visits | L21: =L19*ER_nonhosp -> 2.88 | M21: =M19*ER_nonhosp -> 5.76 | N21: =N19*ER_nonhosp -> 8.64 | T21: Emergency room visits | V21: =V19*ER_nonhosp -> 83.808 | W21: =W19*ER_nonhosp -> 167.616 | X21: =X19*ER_nonhosp -> 251.424
J22: Outpatient clinic visits | L22: =L19*outpt_nonhosp -> 8.64 | M22: =M19*outpt_nonhosp -> 17.28 | N22: =N19*outpt_nonhosp -> 25.92 | T22: Outpatient clinic visits | V22: =V19*outpt_nonhosp -> 251.424 | W22: =W19*outpt_nonhosp -> 502.848 | X22: =X19*outpt_nonhosp -> 754.272
B23: Medical encounters per case (non-hospitalized) | I23: No medical care | L23: =L9-L11-L19 -> 363.68 | M23: =M9-M11-M19 -> 727.36 | N23: =N9-N11-N19 -> 1091.04 | S23: No medical care | V23: =V9-V11-V19 -> 10583.088 | W23: =W9-W11-W19 -> 21166.176 | X23: =X9-X11-X19 -> 31749.264
C25: Physician office visit | D25: 1.4
C26: Emergency room visit | D26: 0.1 | G26: Health outcomes summary | Q26: Health outcomes summary modified for under-reporting
C27: Hospital-based outpatient clinic visit | D27: 0.3 | R27: Note: Modified | S27: ="for under-reporting factor of "&TEXT(under_rep_adj,"#.#") & "0 and under-diagnosis factor of " &TEXT(under_diag_adj,"##.#") -> for under-reporting factor of 1.0 and under-diagnosis factor of 29.1
L28: ="Low (" &TEXT(year_low,"####") &")" -> Low (2020) | M28: ="Med (" &TEXT(year_med,"####") &")" -> Med (2000) | N28: ="High (" &TEXT(year_high,"####") &")" -> High (2010) | V28: ="Low (" &TEXT(year_low,"####") &")" -> Low (2020) | W28: ="Med (" &TEXT(year_med,"####") &")" -> Med (2000) | X28: ="High (" &TEXT(year_high,"####") &")" -> High (2010)
H29: Total physician office visits | L29: =L20+L12 -> 45.584 | M29: =M20+M12 -> 91.168 | N29: =N20+N12 -> 136.752 | R29: Total physician office visits | V29: =V20+V12 -> 1326.4944 | W29: =W20+W12 -> 2652.9888 | X29: =X20+X12 -> 3979.4832
B30: Correction for under-reporting and under-diagnosis | I30: Total costs | L30: =L29*cost_office -> 6197.45274 | M30: =M29*cost_office -> 12394.90548 | N30: =N29*cost_office -> 18592.35822 | S30: Total costs | V30: =V29*cost_office -> 180345.8747 | W30: =W29*cost_office -> 360691.7495 | X30: =X29*cost_office -> 541037.6242
C32: under-reporting factor | D32: 1 | H32: Total emergency room visits | L32: =L21+L13 -> 5.136 | M32: =M21+M13 -> 10.272 | N32: =N21+N13 -> 15.408 | R32: Total emergency room visits | V32: =V21+V13 -> 149.4576 | W32: =W21+W13 -> 298.9152 | X32: =X21+X13 -> 448.3728
C33: under-diagnosis factor | D33: 29.1 | I33: Total costs | L33: =L32*cost_ER -> 2942.590934 | M33: =M32*cost_ER -> 5885.181868 | N33: =N32*cost_ER -> 8827.772802 | S33: Total costs | V33: =V32*cost_ER -> 85629.39618 | W33: =W32*cost_ER -> 171258.7924 | X33: =X32*cost_ER -> 256888.1885
H35: Total hospital-based outpatient clinic visits | L35: =L22+L14 -> 10.144 | M35: =M22+M14 -> 20.288 | N35: =N22+N14 -> 30.432 | R35: Total hospital-based outpatient clinic visits | V35: =V22+V14 -> 295.1904 | W35: =W22+W14 -> 590.3808 | X35: =X22+X14 -> 885.5712
I36: Total costs | L36: =L35*cost_outpt -> 6683.144268 | M36: =M35*cost_outpt -> 13366.28854 | N36: =N35*cost_outpt -> 20049.4328 | S36: Total costs | V36: =V35*cost_outpt -> 194479.4982 | W36: =W35*cost_outpt -> 388958.9964 | X36: =X35*cost_outpt -> 583438.4946
H38: Total hospitalizations | L38: =L11 -> 7.52 | M38: =M11 -> 15.04 | N38: =N11 -> 22.56 | R38: Total hospitalizations | V38: =V11 -> 218.832 | W38: =W11 -> 437.664 | X38: =X11 -> 656.496
I39: Total costs | L39: =L38*cost_hosp -> 104813.9426 | M39: =M38*cost_hosp -> 209627.8852 | N39: =N38*cost_hosp -> 314441.8277 | S39: Total costs | V39: =V38*cost_hosp -> 3050085.729 | W39: =W38*cost_hosp -> 6100171.458 | X39: =X38*cost_hosp -> 9150257.187
L43: =L30+L33+L36+L39 -> 120637.1305 | M43: =M30+M33+M36+M39 -> 241274.261 | N43: =N30+N33+N36+N39 -> 361911.3916 | V43: =V30+V33+V36+V39 -> 3510540.498 | W43: =W30+W33+W36+W39 -> 7021080.996 | X43: =X30+X33+X36+X39 -> 10531621.49
B44: References
B46: Batz, Michael B., Sandra A. Hoffmann, J. Glenn Morris Jr. 2014.
C47: Disease-Outcome Trees, EQ-5D Scores, and Estimated Annual Losses of Quality-Adjusted Life Years (QALYs) Due to 14 Foodborne Pathogens in the United States. Foodborne Pathogen and Disease 11(5): 395-402.
B48: Scallan, E., Hoekstra, R. M., Angulo, F. J., Tauxe, R. V., Widdowson, M., Roy, S. L....Griffin, P. M. (2011).
C49: Foodborne Illness Acquired in the United States—Major Pathogens. Emerging Infectious Diseases, 17(1), 7-15. https://dx.doi.org/10.3201/eid1701.p11101.
B50: Collier SA, Deng L, Adam EA, Benedict KM, Beshearse EM, Blackstock AJ, et al.
C51: Estimate of Burden and Direct Healthcare Cost of Infectious Waterborne Disease in the United States. Emerging Infectious Diseases. 2021;27(1):140-9. doi: 10.3201/eid2701.190676.

Sheet Health Outcomes
A1: HEALTH OUTCOME
E5: =1-outpatient_care-hosp -> 0.9092 | J5: Back to Epidemiology (Details)
E10: =outpatient_care -> 0.072
H14: =1-died -> 0.98
E15: =hosp -> 0.0188
H18: =died -> 0.02
B23: References
B25: Batz, Michael B., Sandra A. Hoffmann, J. Glenn Morris Jr. 2014.
C26: Disease-Outcome Trees, EQ-5D Scores, and Estimated Annual Losses of Quality-Adjusted Life Years (QALYs) Due to 14 Foodborne Pathogens in the United States. Foodborne Pathogen and Disease 11(5): 395-402.

Sheet Response Impact
A1: RESPONSE IMPACT CALCULATIONS
B3: Back to Response Illustrations
B6: Salmonella Outbreak Response Impact
F8: ='6. Response Illustrations'!G8 -> Illustration 1 | G8: ='6. Response Illustrations'!I8 -> Illustration 2
C9: Amount of outbreak-related products distributed | F9: ='6. Response Illustrations'!G11 -> 25000 | G9: ='6. Response Illustrations'!I11 -> 5000
C10: Amount of products discarded by retailers due to response activities | F10: ='6. Response Illustrations'!G12 -> 10000 | G10: ='6. Response Illustrations'!I12 -> 2000
C11: Products consumed | F11: ='6. Response Illustrations'!G13 -> 15000 | G11: ='6. Response Illustrations'!I13 -> 3000
C13: Number of Salmonella cases attributable to the product | F13: ='6. Response Illustrations'!G15 -> 200 | G13: ='6. Response Illustrations'!I15 -> 100
C14: Cases per 1,000 unit product consumed | F14: =F13/F11*1000 -> 13.33333333 | G14: =G13/G11*1000 -> 33.33333333
C16: Cases averted due to recall | F16: =F14*F10/1000 -> 133.3333333 | G16: =G14*G10/1000 -> 66.66666667
B22: References
B24: Robert L. Scharff, John Besser, Donald J. Sharp, Timothy F. Jones, Peter Gerner-Smidt, Craig W. Hedberg (2016).
C25: An Economic Evaluation of PulseNet: A Network for Foodborne Disease Surveillance. American Journal of Preventive Medicine, 50(5).

Sheet Data Summary
A1: DATA SUMMARY
G5: Non-hospitalized | I5: Hospitalized
B6: Health outcomes | F6: Total cases | G6: No medical care | H6: Received medical care | I6: Total | J6: Recovered | K6: Died
B8: Number of cases
D9: low | F9: 644786 | G9: 589816.408 | H9: 46424.592 | I9: 8545 | J9: 8545 | K9: 0
D10: mean | F10: 1027561 | G10: 934240.608 | H10: 73984.392 | I10: 19336 | J10: 18958 | K10: 378
D11: high | F11: 1679667 | G11: 1521240.976 | H11: 120936.024 | I11: 37490 | J11: 36479 | K11: 1011
B13: Cost component | G13: Non-hospitalized | I13: Hospitalized
G14: No medical care | H14: Received medical care | I14: Total | J14: Recovered
B15: Medical costs
C16: Physician office visits
D17: Average visits per case | G17: 0 | H17: 1.4 | I17: 0.7 | J17: 1
D18: Average cost per visit | F18: 135.9567554
C19: Emergency room visits
D20: Average visits per case | G20: 0 | H20: 0.1 | I20: 0.3 | J20: 0
D21: Average cost per visit | F21: 572.9343719
C22: Outpatient clinic visits
D23: Average visits per case | G23: 0 | H23: 0.3 | I23: 0.2 | J23: 0
D24: Average cost per visit | F24: 658.8273135
C25: Hospitalizations
D26: Average admissions per case | G26: 0 | H26: 0 | I26: 1 | J26: 0
D27: Average cost per hospitalization | F27: 13938.02428
D29: Total Cost per case | G29: 0 | H29: 445.2810888 | I29: 14336.83978 | J29: 135.9567554
B34: References
B36: Economic Research Service (ERS), U.S. Department of Agriculture (USDA). Cost Estimates of Foodborne Illnesses.
C37: http://ers.usda.gov/data-products/cost-estimates-of-foodborne-illnesses.aspx

Sheet Mean COI (hidden)
A1: Cost of foodborne illness estimates for Salmonella (nontyphoidal)
E2: Mean estimates, 2013
F4: Non-hospitalized | H4: Hospitalized | I4: Post-hospitalization outcomes
A5: Health outcomes | E5: Total cases | F5: Didn't visit physician; recovered | G5: Visited physician; recovered | H5: Hospitalized | I5: Post-hospitalization recovery | J5: Hospitalized; died
A6: Number of cases | E6: 1027561
B7: Cases by outcome | F7: 934240.608 | G7: 73984.392 | H7: 19336 | I7: 18958 | J7: 378
A9: Medical costs
B10: Physician office visits | G10: =G$7*#REF!*#REF! ->  | H10: =H$7*#REF!*#REF! ->  | I10: =I$7*#REF!*#REF! -> 
B11: Emergency room visits | G11: =G$7*#REF!*#REF! ->  | H11: =H$7*#REF!*#REF! ->  | I11: =I$7*#REF!*#REF! -> 
B12: Outpatient clinic visits | G12: =G$7*#REF!*#REF! ->  | H12: =H$7*#REF!*#REF! ->  | I12: =I$7*#REF!*#REF! -> 
B13: Hospitalizations | G13: =G$7*#REF!*#REF! ->  | H13: =H$7*#REF!*#REF! ->  | I13: =I$7*#REF!*#REF! -> 
B14: Total medical costs by outcome | G14: =SUM(G10:G13) ->  | H14: =SUM(H10:H13) -> 
A16: Premature death | J16: =J7*#REF! -> 
A18: Productivity loss, nonfatal cases | F18: =F7*#REF!*#REF!*#REF! ->  | G18: =G7*#REF!*#REF!*#REF! ->  | H18: =H7*#REF!*#REF!*#REF! ->  | I18: =I7*#REF!*#REF!*#REF! -> 
A20: Total cost by outcome | F20: =SUM(F14:F18) ->  | G20: =SUM(G14:G18) ->  | H20: =SUM(H14:H18) ->  | I20: =SUM(I14:I18) ->  | J20: =J16 -> 
A22: Total cost of illness | E22: =SUM(F20:J20) -> 
A24: Note: In each pathogen Excel file, the spreadsheets for low, mean, and high costs of foodborne illness are linked to the spreadsheet with assumptions used in estimating cost-of-illness estimates for that pathogen. Users may change the assumptions in the per-case assumptions worksheet to conduct sensitivity analysis on the influence of specific per-case assumptions. They may also update per-case costs in the per-case assumptions worksheet for inflation and income growth by using information from the Consumer Price Indexes Excel spreadsheet and the VSL Excel spreadsheet provided as part of this data product. See the Documentation page of this data product for further guidance.
A25: ERS's mean estimate of the total annual cost of foodborne illness from Salmonella in 2013 dollars is $3,666,600,031.
A26: Citation: Economic Research Service (ERS), U.S. Department of Agriculture (USDA). Cost Estimates of Foodborne Illnesses. http://ers.usda.gov/data-products/cost-estimates-of-foodborne-illnesses.aspx.
A28: Source: This spreadsheet is based on:
C29: Hoffmann, Sandra, Michael Batz, J. Glenn Morris Jr. 2012. “Annual Cost of Illness and Quality-Adjusted Life Year Losses in the United States Due to 14 Foodborne Pathogens.” J. Food Protection 75(7): 1291-1302; and
C30: Batz, Michael B., Sandra A. Hoffmann, J. Glenn Morris Jr. 2014. Disease-Outcome Trees, EQ-5D Scores, and Estimated Annual Losses of Quality-Adjusted Life Years (QALYs) Due to 14 Foodborne Pathogens in the United States. Foodborne Pathogen and Disease 11(5): 395-402.

Sheet Data Read Me (hidden)
B2: Low, Mean, and High Estimates of the Annual Cost of Foodborne Illnesses Caused by Salmonella (nontyphoidal)
B4: This Excel file reports the USDA Economic Research Service estimates of the annual cost of foodborne illnesses for Salmonella (nontyphoidal) in the U.S.
B6: ERS has developed similar Excel files for each of 15 major foodborne pathogens. The U.S. Centers for Disease Control and Prevention estimates that these 15 pathogens cause over 95 percent of the foodborne illnesses, hospitalizations and deaths each year in the U.S. for which a pathogen cause can be identified.
B8: This Excel file contains 3 worksheets in addition to this cover page: mean, low, and high estimates of foodborne illness and a spreadsheet that contains assumptions used in calculating the mean, low, and high estimates. More detailed discussion of how these spreadsheets were developed and how to work with them can be found in the Documentation.
B10: Sources:
B11: Hoffmann, Sandra, Michael Batz, J. Glenn Morris Jr. 2012. “Annual Cost of Illness and Quality-Adjusted Life Year Losses in the United States Due to 14 Foodborne Pathogens.” J. Food Protection 75(7): 1291-1302; and
B13: Batz, Michael B., Sandra A. Hoffmann, J. Glenn Morris Jr. 2014. Disease-Outcome Trees, EQ-5D Scores, and Estimated Annual Losses of Quality-Adjusted Life Years (QALYs) Due to 14 Foodborne Pathogens in the United States. Foodborne Pathogen and Disease 11(5): 395-402.
B15: Cite as: Economic Research Service (ERS), U.S. Department of Agriculture (USDA). Cost Estimates of Foodborne Illnesses. http://ers.usda.gov/data-products/cost-estimates-of-foodborne-illnesses.aspx.(2014).

Sheet Low (hidden)
A1: Cost of foodborne illness estimates for Salmonella (nontyphoidal)
E2: Low estimates, 2013
F4: Non-hospitalized | H4: Hospitalized | I4: Post-hospitalization outcomes
A5: Health outcomes | E5: Total cases | F5: Didn't visit physician; recovered | G5: Visited physician; recovered | H5: Hospitalized | I5: Post-hospitalization recovery | J5: Hospitalized; died
A6: Number of cases | E6: 644786
B7: Cases by outcome | F7: 589816.408 | G7: 46424.592 | H7: 8545 | I7: 8545 | J7: 0
A9: Medical costs
B10: Physician office visits | G10: =G$7*#REF!*#REF! ->  | H10: =H$7*#REF!*#REF! ->  | I10: =I$7*#REF!*#REF! -> 
B11: Emergency room visits | G11: =G$7*#REF!*#REF! ->  | H11: =H$7*#REF!*#REF! ->  | I11: =I$7*#REF!*#REF! -> 
B12: Outpatient clinic visits | G12: =G$7*#REF!*#REF! ->  | H12: =H$7*#REF!*#REF! ->  | I12: =I$7*#REF!*#REF! -> 
B13: Hospitalizations | G13: =G$7*#REF!*#REF! ->  | H13: =H$7*#REF!*#REF! ->  | I13: =I$7*#REF!*#REF! -> 
B14: Total medical costs by outcome | G14: =SUM(G10:G13) ->  | H14: =SUM(H10:H13) -> 
A16: Premature death | J16: =J7*#REF! -> 
A18: Productivity loss, nonfatal cases | F18: =F7*#REF!*#REF!*#REF! ->  | G18: =G7*#REF!*#REF!*#REF! ->  | H18: =H7*#REF!*#REF!*#REF! ->  | I18: =I7*#REF!*#REF!*#REF! -> 
A20: Total cost by outcome | F20: =SUM(F14:F18) ->  | G20: =SUM(G14:G18) ->  | H20: =SUM(H14:H18) ->  | I20: =SUM(I14:I18) ->  | J20: =J16 -> 
A22: Total cost of illness | E22: =SUM(F20:J20) -> 
A24: Note: In each pathogen Excel file, the spreadsheets for low, mean, and high costs of foodborne illness are linked to the spreadsheet with assumptions used in estimating cost-of-illness estimates for that pathogen. Users may change the assumptions in the per-case assumptions worksheet to conduct sensitivity analysis on the influence of specific per-case assumptions. They may also update per-case costs in the per-case assumptions worksheet for inflation and income growth by using information from the Consumer Price Indexes Excel spreadsheet and the VSL Excel spreadsheet provided as part of this data product. See the Documentation page of this data product for further guidance.
A25: ERS's low estimate of the total annual cost of foodborne illness from Salmonella in 2013 dollars is $192,932,710.
A26: Citation: Economic Research Service (ERS), U.S. Department of Agriculture (USDA). Cost Estimates of Foodborne Illnesses. http://ers.usda.gov/data-products/cost-estimates-of-foodborne-illnesses.aspx.
A28: Source: This spreadsheet is based on:
C29: Hoffmann, Sandra, Michael Batz, J. Glenn Morris Jr. 2012. “Annual Cost of Illness and Quality-Adjusted Life Year Losses in the United States Due to 14 Foodborne Pathogens.” J. Food Protection 75(7): 1291-1302; and
C30: Batz, Michael B., Sandra A. Hoffmann, J. Glenn Morris Jr. 2014. Disease-Outcome Trees, EQ-5D Scores, and Estimated Annual Losses of Quality-Adjusted Life Years (QALYs) Due to 14 Foodborne Pathogens in the United States. Foodborne Pathogen and Disease 11(5): 395-402.

Sheet High (hidden)
A1: Cost of foodborne illness estimates for Salmonella (nontyphoidal)
E2: High estimates, 2013
F4: Non-hospitalized | H4: Hospitalized | I4: Post-hospitalization outcomes
A5: Health outcomes | E5: Total cases | F5: Didn't visit physician; recovered | G5: Visited physician; recovered | H5: Hospitalized | I5: Post-hospitalization recovery | J5: Hospitalized; died
A6: Number of cases | E6: 1679667
B7: Cases by outcome | F7: 1521240.976 | G7: 120936.024 | H7: 37490 | I7: 36479 | J7: 1011
A9: Medical costs
B10: Physician office visits | G10: =G$7*#REF!*#REF! ->  | H10: =H$7*#REF!*#REF! ->  | I10: =I$7*#REF!*#REF! -> 
B11: Emergency room visits | G11: =G$7*#REF!*#REF! ->  | H11: =H$7*#REF!*#REF! ->  | I11: =I$7*#REF!*#REF! -> 
B12: Outpatient clinic visits | G12: =G$7*#REF!*#REF! ->  | H12: =H$7*#REF!*#REF! ->  | I12: =I$7*#REF!*#REF! -> 
B13: Hospitalizations | G13: =G$7*#REF!*#REF! ->  | H13: =H$7*#REF!*#REF! ->  | I13: =I$7*#REF!*#REF! -> 
B14: Total medical costs by outcome | G14: =SUM(G10:G13) ->  | H14: =SUM(H10:H13) ->  | I14: =SUM(I10:I13) -> 
A16: Premature death | J16: =J7*#REF! -> 
A18: Productivity loss, nonfatal cases | F18: =F7*#REF!*#REF!*#REF! ->  | G18: =G7*#REF!*#REF!*#REF! ->  | H18: =H7*#REF!*#REF!*#REF! ->  | I18: =I7*#REF!*#REF!*#REF! -> 
A20: Total cost by outcome | F20: =SUM(F14:F18) ->  | G20: =SUM(G14:G18) ->  | H20: =SUM(H14:H18) ->  | I20: =SUM(I14:I18) ->  | J20: =J16 -> 
A22: Total cost of illness | E22: =SUM(F20:J20) -> 
A24: Note: In each pathogen Excel file, the spreadsheets for low, mean, and high costs of foodborne illness are linked to the spreadsheet with assumptions used in estimating cost-of-illness estimates for that pathogen. Users may change the assumptions in the per-case assumptions worksheet to conduct sensitivity analysis on the influence of specific per-case assumptions. They may also update per-case costs in the per-case assumptions worksheet for inflation and income growth by using information from the Consumer Price Indexes Excel spreadsheet and the VSL Excel spreadsheet provided as part of this data product. See the Documentation page of this data product for further guidance.
A25: ERS's high estimate of the total annual cost of foodborne illness from Salmonella in 2013 dollars is $9,485,969,040.
A26: Citation: Economic Research Service (ERS), U.S. Department of Agriculture (USDA). Cost Estimates of Foodborne Illnesses. http://ers.usda.gov/data-products/cost-estimates-of-foodborne-illnesses.aspx.
A28: Source: This spreadsheet is based on:
C29: Hoffmann, Sandra, Michael Batz, J. Glenn Morris Jr. 2012. “Annual Cost of Illness and Quality-Adjusted Life Year Losses in the United States Due to 14 Foodborne Pathogens.” J. Food Protection 75(7): 1291-1302; and
C30: Batz, Michael B., Sandra A. Hoffmann, J. Glenn Morris Jr. 2014. Disease-Outcome Trees, EQ-5D Scores, and Estimated Annual Losses of Quality-Adjusted Life Years (QALYs) Due to 14 Foodborne Pathogens in the United States. Foodborne Pathogen and Disease 11(5): 395-402.
